bitfinex-derivatives/quotes_BTCF0:USTF0_20250117
["timestamp","ask_amount","ask_price","bid_price","bid_amount"]
[1737155438733,0.25749031,104400.0,104390.0,0.81527425]
[1737155438932,0.25749031,104400.0,104390.0,1.04220835]
[1737155439129,0.17188505,104410.0,104400.0,0.047875]
[1737155439437,0.17188505,104410.0,104400.0,0.57010335]
[1737155440541,0.10712309,104420.0,104410.0,0.047871]
[1737155440726,0.10712309,104420.0,104410.0,0.46648805]
[1737155440930,0.10712309,104420.0,104410.0,0.10568805]
[1737155441442,0.05921737,104420.0,104410.0,0.047871]
[1737155441637,0.05921737,104420.0,104410.0,0.408671]
[1737155445735,0.05921737,104420.0,104410.0,0.49670917]
[1737155454943,0.14725554,104420.0,104400.0,0.465075]
[1737155455138,0.047871,104410.0,104400.0,0.408675]
[1737155455446,0.047871,104410.0,104400.0,0.047875]
[1737155455946,0.13590917,104410.0,104400.0,0.047875]
[1737155456149,0.047871,104410.0,104400.0,0.047875]
[1737155460951,0.047871,104410.0,104390.0,0.56013817]
[1737155461156,0.047871,104410.0,104390.0,0.55251617]
[1737155461157,0.047875,104400.0,104390.0,0.55251617]
[1737155461357,0.047875,104400.0,104390.0,0.52227125]
[1737155461956,0.047875,104400.0,104390.0,0.56802062]
[1737155466654,0.10566825,104400.0,104390.0,0.51222062]
[1737155466860,0.10566825,104400.0,104390.0,0.09362737]
[1737155467160,0.577975,104400.0,104390.0,0.10567125]
[1737155467863,0.63576825,104400.0,104390.0,0.047878]
[1737155468053,0.577975,104400.0,104390.0,0.10567125]
[1737155468757,0.58761835,104400.0,104390.0,0.10567125]
[1737155469663,0.58761835,104400.0,104390.0,0.047878]
[1737155469962,0.58761835,104400.0,104390.0,0.10567125]
[1737155471357,0.6454116,104400.0,104390.0,0.10567125]
[1737155473754,0.6454116,104400.0,104390.0,0.047878]
[1737155474157,0.04788,104390.0,104380.0,0.51435625]
[1737155475266,0.10567325,104390.0,104380.0,0.408681]
[1737155475573,0.10567325,104390.0,104380.0,0.45444862]
[1737155478269,0.10567325,104390.0,104380.0,0.51224187]
[1737155479862,0.10567325,104390.0,104380.0,0.15144187]
[1737155480068,0.10567325,104390.0,104380.0,0.10567425]
[1737155480269,0.04788,104390.0,104380.0,0.10567425]
[1737155482256,0.10567325,104390.0,104380.0,0.047881]
[1737155482569,0.047885,104380.0,104370.0,0.3608]
[1737155482867,0.62677825,104380.0,104360.0,0.56958997]
[1737155483172,0.047889,104370.0,104360.0,0.56745574]
[1737155483465,0.10568225,104370.0,104360.0,0.10310572]
[1737155483768,0.047889,104370.0,104360.0,0.16089897]
[1737155483961,0.047889,104370.0,104360.0,0.50493617]
[1737155484158,0.047889,104370.0,104360.0,0.91148756]
[1737155484665,0.047889,104370.0,104360.0,0.91147584]
[1737155485469,0.047889,104370.0,104360.0,0.86573617]
[1737155485864,0.047889,104370.0,104360.0,0.50493617]
[1737155486174,0.047889,104370.0,104360.0,0.91147685]
[1737155486564,0.047889,104370.0,104360.0,0.86573617]
[1737155487166,0.047889,104370.0,104360.0,0.52169897]
[1737155488266,0.047889,104370.0,104360.0,0.56743861]
[1737155488471,0.047889,104370.0,104360.0,0.52169897]
[1737155489177,0.047889,104370.0,104360.0,0.56744141]
[1737155493479,0.047889,104370.0,104360.0,0.62523466]
[1737155494283,0.047889,104370.0,104360.0,0.56744141]
[1737155495380,0.047889,104370.0,104360.0,0.52169897]
[1737155496179,0.21813263,104380.0,104370.0,0.047889]
[1737155496474,0.11033263,104380.0,104370.0,0.46648225]
[1737155496679,0.11033263,104380.0,104370.0,0.10568225]
[1737155502794,0.16812588,104380.0,104370.0,0.047889]
[1737155506278,0.047889,104370.0,104360.0,0.76280308]
[1737155506483,0.10568225,104370.0,104360.0,0.85648089]
[1737155506684,0.047889,104370.0,104360.0,0.85648089]
[1737155513589,0.047889,104370.0,104360.0,0.75290183]
[1737155513785,0.047889,104370.0,104360.0,0.81069508]
[1737155514590,0.16227258,104370.0,104360.0,0.51244441]
[1737155515394,0.16227258,104370.0,104360.0,0.15164441]
[1737155515690,0.047889,104370.0,104360.0,0.49573852]
[1737155516990,0.16227258,104370.0,104360.0,0.49573852]
[1737155518191,0.047889,104370.0,104360.0,0.49573852]
[1737155519099,0.047889,104370.0,104360.0,0.85653852]
[1737155523007,0.047889,104370.0,104360.0,0.79874527]
[1737155523302,0.047889,104370.0,104360.0,0.85653852]
[1737155526822,0.047889,104370.0,104360.0,0.90663852]
[1737155528617,0.17221621,104380.0,104370.0,0.047889]
[1737155528809,0.17221621,104380.0,104370.0,0.46648225]
[1737155529008,0.17221621,104380.0,104370.0,0.56428225]
[1737155529216,0.17221621,104380.0,104370.0,0.61014269]
[1737155531407,0.17221621,104380.0,104370.0,0.9542368]
[1737155535017,0.05783263,104380.0,104370.0,0.9542368]
[1737155542428,0.00994663,104380.0,104370.0,0.9542368]
[1737155542622,0.37884383,104390.0,104380.0,0.047885]
[1737155542823,0.33095983,104390.0,104380.0,0.15153869]
[1737155543322,0.27316658,104390.0,104380.0,0.15153869]
[1737155544227,0.28282709,104390.0,104380.0,0.15153869]
[1737155544526,0.17192709,104390.0,104380.0,0.15153869]
[1737155546229,0.05754351,104390.0,104380.0,0.15153869]
[1737155547626,0.00966051,104390.0,104380.0,0.57013194]
[1737155547927,0.7181331,104400.0,104390.0,0.04788]
[1737155548119,0.7181331,104400.0,104390.0,0.10567325]
[1737155548120,0.77592635,104400.0,104390.0,0.10567325]
[1737155548826,0.78548747,104400.0,104390.0,0.10567325]
[1737155552616,0.36689422,104400.0,104390.0,0.10567325]
[1737155552819,0.31901522,104400.0,104390.0,0.46647325]
[1737155553019,0.31459022,104400.0,104390.0,0.51227389]
[1737155553220,0.31459022,104400.0,104390.0,0.61757389]
[1737155554128,0.1718197,104400.0,104390.0,0.61757389]
[1737155554318,0.05743612,104400.0,104390.0,0.61757389]
[1737155561628,0.00956112,104400.0,104390.0,0.61757389]
[1737155561829,0.16282848,104410.0,104400.0,0.047875]
[1737155562026,0.16282848,104410.0,104400.0,0.10566825]
[1737155563633,0.17229433,104410.0,104400.0,0.10566825]
[1737155566033,0.047875,104400.0,104390.0,0.408678]
[1737155566336,0.15606825,104400.0,104390.0,0.46647125]
[1737155567027,0.098275,104400.0,104390.0,0.46647125]
[1737155567739,0.23880491,104410.0,104390.0,0.51226773]
[1737155568034,0.28667591,104410.0,104400.0,0.5242615]
[1737155568235,0.28667591,104410.0,104400.0,0.51226473]
[1737155568737,0.17229233,104410.0,104400.0,0.46646825]
[1737155574634,0.00946585,104410.0,104400.0,0.57005441]
[1737155574937,0.21165258,104420.0,104410.0,0.047871]
[1737155575235,0.21165258,104420.0,104410.0,0.10566425]
[1737155576638,0.097269,104420.0,104410.0,0.10566425]
[1737155577542,0.15506225,104420.0,104410.0,0.10566425]
[1737155578340,0.16448173,104420.0,104410.0,0.10566425]
[1737155578644,0.10668848,104420.0,104410.0,0.10566425]
[1737155578841,0.16448173,104420.0,104410.0,0.10566425]
[1737155579041,0.10668848,104420.0,104410.0,0.10566425]
[1737155579341,0.22107206,104420.0,104410.0,0.10566425]
[1737155579642,0.17320306,104420.0,104410.0,0.46646425]
[1737155580142,0.17320306,104420.0,104410.0,0.51227325]
[1737155580833,0.05881948,104420.0,104410.0,0.51227325]
[1737155584349,0.00941948,104420.0,104410.0,0.51227325]
[1737155584642,0.6707845,104430.0,104420.0,0.047866]
[1737155584838,0.6707845,104430.0,104420.0,0.10565925]
[1737155587135,0.68052338,104430.0,104420.0,0.10565925]
[1737155588843,0.31972338,104430.0,104420.0,0.46645925]
[1737155589047,0.31972338,104430.0,104420.0,0.5242525]
[1737155589240,0.31972338,104430.0,104420.0,0.57007458]
[1737155589441,0.31972338,104430.0,104420.0,0.51228133]
[1737155589844,0.2053398,104430.0,104420.0,0.51228133]
[1737155590346,0.2053398,104430.0,104420.0,0.57007458]
[1737155592950,0.0590398,104430.0,104420.0,0.5242525]
[1737155593448,0.0590398,104430.0,104420.0,0.57005723]
[1737155593648,0.0590398,104430.0,104420.0,0.5242525]
[1737155594153,0.00143692,104430.0,104420.0,0.5242525]
[1737155594352,0.00143692,104430.0,104420.0,0.5700544]
[1737155594552,0.00143692,104430.0,104420.0,0.6224544]
[1737155595343,0.32557284,104440.0,104430.0,0.047862]
[1737155595547,0.32557284,104440.0,104430.0,0.10565525]
[1737155595749,0.21118926,104440.0,104430.0,0.10565525]
[1737155607950,0.21118926,104440.0,104430.0,0.46645525]
[1737155609359,0.21118926,104440.0,104430.0,0.51226581]
[1737155615259,0.68757576,104440.0,104420.0,0.047866]
[1737155615563,0.408662,104430.0,104420.0,0.10565925]
[1737155616067,0.52304558,104430.0,104420.0,0.10565925]
[1737155622167,0.52304558,104430.0,104420.0,0.15151219]
[1737155626265,0.408662,104430.0,104420.0,0.15151219]
[1737155630472,0.408662,104430.0,104420.0,0.10565925]
[1737155633272,0.52304558,104430.0,104420.0,0.10565925]
[1737155634367,0.408662,104430.0,104420.0,0.10565925]
[1737155635660,0.408662,104430.0,104420.0,0.15150425]
[1737155636569,0.408662,104430.0,104420.0,0.2092975]
[1737155640978,0.52304558,104430.0,104420.0,0.2092975]
[1737155641277,0.52304558,104430.0,104420.0,0.15150425]
[1737155642173,0.52304558,104430.0,104420.0,0.2092975]
[1737155651682,0.52304558,104430.0,104420.0,0.093711]
[1737155651885,0.52304558,104430.0,104420.0,0.2092975]
[1737155654583,0.16224558,104430.0,104420.0,0.2092975]
[1737155661589,0.11438358,104430.0,104420.0,0.62789075]
[1737155662992,0.11438358,104440.0,104420.0,0.62789075]
[1737155663190,0.11438358,104440.0,104430.0,0.6257485]
[1737155663389,0.11438358,104440.0,104430.0,0.6715935]
[1737155663789,0.21009458,104450.0,104430.0,0.6237315]
[1737155663984,0.16223858,104450.0,104440.0,0.1634435]
[1737155664999,0.17205802,104450.0,104440.0,0.1634435]
[1737155666200,0.17205802,104450.0,104440.0,0.20929311]
[1737155666903,0.05767444,104450.0,104440.0,0.20929311]
[1737155667091,0.00981944,104450.0,104440.0,0.62788636]
[1737155667292,0.8865656,104460.0,104440.0,0.62788636]
[1737155667591,0.8865656,104460.0,104450.0,0.1634395]
[1737155667898,0.74345458,104460.0,104450.0,0.1634395]
[1737155668800,0.629071,104460.0,104450.0,0.1634395]
[1737155669993,0.63891247,104460.0,104450.0,0.1634395]
[1737155670701,0.63891247,104460.0,104450.0,0.10564625]
[1737155672889,0.63891247,104460.0,104450.0,0.1634395]
[1737155673794,0.63891247,104460.0,104450.0,0.10564625]
[1737155674397,0.63891247,104460.0,104450.0,0.1634395]
[1737155674599,0.16214147,104460.0,104450.0,0.5242395]
[1737155674799,0.16148947,104460.0,104450.0,0.5242395]
[1737155675307,0.05768947,104460.0,104450.0,0.5242395]
[1737155676393,0.05768947,104460.0,104450.0,0.5743395]
[1737155676598,0.05768947,104460.0,104450.0,0.6783395]
[1737155677901,0.56746887,104470.0,104450.0,0.6783395]
[1737155678108,0.56746887,104470.0,104460.0,0.22122775]
[1737155678109,0.25451287,104470.0,104460.0,0.22122775]
[1737155678606,0.20421287,104470.0,104460.0,0.22122775]
[1737155678806,0.20421287,104470.0,104460.0,0.1634345]
[1737155679715,0.21376639,104470.0,104460.0,0.1634345]
[1737155683413,0.21376639,104470.0,104460.0,0.1155865]
[1737155683615,0.26426639,104470.0,104460.0,0.1155865]
[1737155685206,0.26426639,104470.0,104460.0,0.1634345]
[1737155693818,0.26426639,104470.0,104460.0,0.5242345]
[1737155694019,0.0232392,104470.0,104460.0,0.62778063]
[1737155694218,0.01368568,104470.0,104460.0,0.62778063]
[1737155694416,0.01368568,104470.0,104460.0,0.62298738]
[1737155694914,0.01368568,104470.0,104460.0,0.68078063]
[1737155695622,0.01224923,104470.0,104460.0,0.62298738]
[1737155699520,0.01224923,104470.0,104460.0,0.56998738]
[1737155699713,0.01224923,104470.0,104460.0,0.408648]
[1737155699714,0.16938548,104470.0,104460.0,0.408648]
[1737155699915,0.16938548,104470.0,104460.0,0.10564125]
[1737155700226,0.047848,104460.0,104450.0,0.46644425]
[1737155700423,0.148348,104460.0,104450.0,0.46644425]
[1737155700922,0.148348,104460.0,104450.0,0.41859325]
[1737155701218,0.148348,104460.0,104450.0,0.46644625]
[1737155701410,0.22597681,104470.0,104450.0,0.57002814]
[1737155701610,0.22597681,104470.0,104460.0,0.5242345]
[1737155701611,0.17813281,104470.0,104460.0,0.5242345]
[1737155702022,0.17813281,104470.0,104460.0,0.57002277]
[1737155702217,0.01224923,104470.0,104460.0,0.58202775]
[1737155702411,0.01224923,104470.0,104460.0,0.62052273]
[1737155702619,0.01224923,104470.0,104460.0,0.67212273]
[1737155703321,0.01224923,104470.0,104460.0,0.64447229]
[1737155703917,0.06009223,104470.0,104460.0,0.50493623]
[1737155704117,0.14802829,104470.0,104460.0,0.45443623]
[1737155704319,0.19932829,104470.0,104460.0,0.45443623]
[1737155705420,0.19932829,104470.0,104460.0,0.408648]
[1737155707832,0.11139223,104470.0,104460.0,0.408648]
[1737155709524,0.12095388,104470.0,104460.0,0.408648]
[1737155709724,0.20888994,104470.0,104460.0,0.408648]
[1737155710125,0.20888994,104470.0,104460.0,0.45446069]
[1737155713725,0.12095388,104470.0,104460.0,0.45446069]
[1737155720936,0.12095388,104470.0,104460.0,0.408648]
[1737155723341,0.17867741,104470.0,104460.0,0.408648]
[1737155725839,0.17867741,104470.0,104460.0,0.45448098]
[1737155730434,0.29306099,104470.0,104460.0,0.45448098]
[1737155735345,0.29306099,104470.0,104460.0,0.04583298]
[1737155735538,0.047848,104460.0,104440.0,0.459153]
[1737155735741,0.047848,104460.0,104440.0,1.25142793]
[1737155735742,0.10557653,104450.0,104440.0,1.25142793]
[1737155736748,0.10557653,104450.0,104440.0,0.50503072]
[1737155740148,0.10557653,104450.0,104440.0,0.56275425]
[1737155740741,0.10557653,104450.0,104440.0,0.50503072]
[1737155741549,0.10557653,104450.0,104440.0,0.56275425]
[1737155741752,0.10557653,104450.0,104440.0,0.50503072]
[1737155743049,0.11535782,104450.0,104440.0,0.50503072]
[1737155749148,0.05763429,104450.0,104440.0,0.62047778]
[1737155749350,0.05763429,104450.0,104440.0,0.67580006]
[1737155749553,0.05763429,104450.0,104440.0,0.605756]
[1737155749747,0.05763429,104450.0,104440.0,0.66347953]
[1737155751052,0.11535782,104450.0,104440.0,0.66347953]
[1737155751255,0.05763429,104450.0,104440.0,0.66347953]
[1737155753359,0.05763429,104450.0,104440.0,0.605756]
[1737155753654,0.05763429,104450.0,104440.0,0.6937356]
[1737155754559,0.047853,104450.0,104440.0,0.6937356]
[1737155760954,0.047853,104450.0,104440.0,0.70343442]
[1737155766669,0.05746242,104460.0,104450.0,0.047853]
[1737155766964,0.05746242,104460.0,104450.0,0.5420356]
[1737155767159,0.047848,104460.0,104450.0,0.6300152]
[1737155767364,0.16222958,104470.0,104460.0,0.047848]
[1737155767561,0.16222958,104470.0,104460.0,0.7259102]
[1737155767764,0.11438358,104470.0,104460.0,0.7750102]
[1737155768675,0.047841,104480.0,104460.0,0.7750102]
[1737155768865,0.047841,104480.0,104470.0,0.4966226]
[1737155769065,0.047841,104480.0,104470.0,0.5420256]
[1737155773973,0.05908805,104490.0,104470.0,0.5420256]
[1737155774274,0.10692405,104490.0,104480.0,0.4966186]
[1737155774476,0.05752405,104490.0,104480.0,0.4966186]
[1737155774670,0.047836,104490.0,104480.0,0.5418186]
[1737155775687,0.047836,104490.0,104480.0,0.5895186]
[1737155785990,0.047836,104490.0,104480.0,0.59901977]
[1737155789403,0.047836,104490.0,104480.0,0.62640551]
[1737155790308,0.047836,104490.0,104480.0,0.26560551]
[1737155790604,0.047836,104490.0,104480.0,0.62640551]
[1737155794199,0.047836,104490.0,104480.0,0.47582284]
[1737155794403,0.46631867,104490.0,104470.0,0.46632267]
[1737155794606,0.189339,104480.0,104470.0,0.46632267]
[1737155794908,0.189339,104480.0,104470.0,0.04784]
[1737155795204,0.189339,104480.0,104470.0,0.10552267]
[1737155795205,0.60782167,104480.0,104470.0,0.10552267]
[1737155795403,0.60782167,104480.0,104470.0,0.04784]
[1737155795404,0.550139,104480.0,104470.0,0.04784]
[1737155795699,0.189339,104480.0,104470.0,0.04784]
[1737155796208,0.189339,104480.0,104470.0,0.13577488]
[1737155796993,0.189339,104480.0,104470.0,0.49657488]
[1737155797205,0.189339,104480.0,104470.0,0.13577488]
[1737155801208,0.189339,104480.0,104470.0,0.18116521]
[1737155801810,0.19877132,104480.0,104470.0,0.18116521]
[1737155805115,0.19877132,104480.0,104470.0,0.13577488]
[1737155813017,0.19877132,104480.0,104470.0,0.18117633]
[1737155813213,0.19877132,104480.0,104470.0,0.13577488]
[1737155813711,0.19877132,104480.0,104470.0,0.18117606]
[1737155815116,0.19877132,104480.0,104470.0,0.13577488]
[1737155817319,0.19877132,104480.0,104470.0,0.10554117]
[1737155819123,0.19877132,104480.0,104470.0,0.15095511]
[1737155819916,0.19877132,104480.0,104470.0,0.10554117]
[1737155820220,0.19877132,104480.0,104470.0,0.15095865]
[1737155821617,0.19877132,104480.0,104470.0,0.10554117]
[1737155821823,0.3131549,104480.0,104470.0,0.10554117]
[1737155823127,0.3131549,104480.0,104470.0,0.15097466]
[1737155823929,0.3131549,104480.0,104470.0,0.10554117]
[1737155826925,0.3131549,104480.0,104470.0,0.15099561]
[1737155843936,0.3131549,104480.0,104470.0,0.09329444]
[1737155844134,0.78935724,104480.0,104450.0,0.44216658]
[1737155844445,0.10554917,104460.0,104450.0,0.09335343]
[1737155844740,0.10554917,104460.0,104450.0,0.1510546]
[1737155844943,0.191348,104460.0,104450.0,0.1510546]
[1737155851346,0.191348,104460.0,104450.0,0.10555017]
[1737155852444,0.20106506,104460.0,104450.0,0.10555017]
[1737155858344,0.25876623,104460.0,104450.0,0.10555017]
[1737155858546,0.20106506,104460.0,104450.0,0.10555017]
[1737155871253,0.05756506,104460.0,104450.0,0.52405134]
[1737155871453,0.11438358,104470.0,104450.0,0.70640907]
[1737155871659,0.11438358,104470.0,104460.0,0.56645034]
[1737155871856,0.11438358,104470.0,104460.0,0.61145707]
[1737155872257,0.047839,104480.0,104460.0,0.61145707]
[1737155872451,0.0573115,104480.0,104470.0,0.46634417]
[1737155872652,0.0573115,104480.0,104470.0,0.5113509]
[1737155875253,0.0573115,104480.0,104470.0,0.5965509]
[1737155875656,0.047839,104480.0,104470.0,0.65425207]
[1737155875850,0.69807776,104490.0,104470.0,0.65425207]
[1737155875851,0.74591476,104490.0,104480.0,0.047839]
[1737155876051,0.31711476,104490.0,104480.0,0.52404134]
[1737155877062,0.21223245,104490.0,104480.0,0.52404134]
[1737155877667,0.19998684,104490.0,104480.0,0.52404134]
[1737155885663,0.19998684,104490.0,104480.0,0.46634017]
[1737155889066,0.05733827,104490.0,104480.0,0.52404134]
[1737155889264,0.147832,104500.0,104480.0,0.56444134]
[1737155889470,0.147832,104500.0,104490.0,0.46633517]
[1737155889869,0.20553317,104500.0,104490.0,0.408634]
[1737155890068,0.32913317,104500.0,104490.0,0.408634]
[1737155890371,0.32913317,104500.0,104490.0,0.3608]
[1737155890562,0.79546634,104500.0,104480.0,0.408638]
[1737155890758,0.10553517,104490.0,104480.0,0.408638]
[1737155891374,0.10553517,104490.0,104480.0,0.46633917]
[1737155891770,0.10553517,104490.0,104480.0,0.408638]
[1737155893576,0.10553517,104490.0,104480.0,0.46633917]
[1737155893875,0.047834,104490.0,104480.0,0.46633917]
[1737155896477,0.10553517,104490.0,104480.0,0.46633917]
[1737155897580,0.10553517,104490.0,104480.0,0.3608]
[1737155897779,0.10553517,104490.0,104460.0,0.408645]
[1737155897780,0.047843,104470.0,104460.0,0.408645]
[1737155897984,0.10554417,104470.0,104460.0,0.5112757]
[1737155898174,0.10554417,104470.0,104460.0,0.45357453]
[1737155898483,0.047843,104470.0,104460.0,0.5112757]
[1737155901875,0.10554417,104470.0,104460.0,0.5112757]
[1737155902584,0.047843,104470.0,104460.0,0.5112757]
[1737155904186,0.10554417,104470.0,104460.0,0.5112757]
[1737155905388,0.047843,104470.0,104460.0,0.5112757]
[1737155905787,0.05721367,104470.0,104460.0,0.5112757]
[1737155906086,0.05721367,104470.0,104460.0,0.1504757]
[1737155906279,0.05721367,104470.0,104460.0,0.5112757]
[1737155906787,0.11491484,104470.0,104460.0,0.40572953]
[1737155907085,0.47571484,104470.0,104460.0,0.04492953]
[1737155907275,0.47571484,104470.0,104450.0,0.54915317]
[1737155907479,0.047848,104460.0,104450.0,0.59416455]
[1737155908388,0.10554917,104460.0,104450.0,0.55346455]
[1737155910289,0.46634917,104460.0,104450.0,0.14765317]
[1737155910590,0.10554917,104460.0,104450.0,0.50845317]
[1737155910984,0.047848,104460.0,104450.0,0.55343398]
[1737155911380,0.047848,104460.0,104450.0,0.50845317]
[1737155911584,0.10554917,104460.0,104450.0,0.50845317]
[1737155911781,0.047848,104460.0,104450.0,0.50845317]
[1737155912782,0.10554917,104460.0,104450.0,0.3608]
[1737155912991,0.14514917,104460.0,104450.0,0.3608]
[1737155913287,0.22714917,104460.0,104450.0,0.3608]
[1737155913982,0.22714917,104460.0,104440.0,0.55494406]
[1737155914293,0.047853,104450.0,104440.0,0.55205026]
[1737155914487,0.047853,104450.0,104440.0,0.49434909]
[1737155914684,0.047853,104450.0,104440.0,0.60975143]
[1737155916693,0.047853,104450.0,104440.0,0.24895143]
[1737155916884,0.047853,104450.0,104440.0,0.60973776]
[1737155918791,0.047853,104450.0,104440.0,0.55203659]
[1737155920292,0.047853,104450.0,104440.0,0.60973776]
[1737155930107,0.05767347,104450.0,104440.0,0.60973776]
[1737155933409,0.263648,104460.0,104450.0,0.047853]
[1737155933604,0.263648,104460.0,104450.0,0.5838007]
[1737155935103,0.27312098,104460.0,104450.0,0.5838007]
[1737155936507,0.2158,104460.0,104450.0,0.64150187]
[1737155936717,0.16222658,104470.0,104450.0,0.64150187]
[1737155937012,0.16222658,104470.0,104460.0,0.47620234]
[1737155937204,0.047843,104470.0,104460.0,0.56899687]
[1737155940606,0.047843,104470.0,104460.0,0.45359453]
[1737155940910,0.10554417,104470.0,104460.0,0.04494653]
[1737155941101,0.15338917,104470.0,104450.0,0.46635117]
[1737155941301,0.1099,104460.0,104450.0,0.51139604]
[1737155941506,0.157748,104460.0,104450.0,0.51139604]
[1737155949720,0.16730901,104460.0,104450.0,0.51139604]
[1737155950214,0.22501018,104460.0,104450.0,0.51139604]
[1737155950403,0.22501018,104460.0,104450.0,0.40584487]
[1737155950806,0.22501018,104460.0,104450.0,0.46354604]
[1737155952007,0.22501018,104460.0,104450.0,0.40584487]
[1737155952222,0.28271135,104460.0,104450.0,0.40584487]
[1737155952509,0.28271135,104460.0,104450.0,0.04504487]
[1737155952907,0.047853,104450.0,104440.0,0.40115176]
[1737155953110,0.46635417,104450.0,104440.0,0.44620627]
[1737155953304,0.46635417,104450.0,104440.0,0.40115176]
[1737155953305,0.52405534,104450.0,104440.0,0.40115176]
[1737155953507,0.53195534,104450.0,104440.0,0.40115176]
[1737155953713,0.10555817,104440.0,104430.0,0.4664599]
[1737155953906,0.10555817,104440.0,104430.0,0.5115026]
[1737155954106,0.21465817,104440.0,104430.0,0.5115026]
[1737155954402,0.21465817,104440.0,104430.0,0.45380143]
[1737155955512,0.21465817,104440.0,104430.0,0.5115026]
[1737155957816,0.047857,104440.0,104430.0,0.5115026]
[1737155958715,0.05759424,104440.0,104430.0,0.5115026]
[1737155959918,0.05759424,104440.0,104430.0,0.1507026]
[1737155960117,0.05759424,104440.0,104430.0,0.5115026]
[1737155960615,0.047857,104440.0,104430.0,0.5115026]
[1737155961012,0.047855,104450.0,104440.0,0.047854]
[1737155961317,0.4158456,104460.0,104450.0,0.047853]
[1737155961614,0.4158456,104460.0,104450.0,0.15059687]
[1737155961810,0.4158456,104460.0,104450.0,0.46635417]
[1737155962012,0.16809993,104460.0,104450.0,0.51134331]
[1737155962813,0.158351,104460.0,104450.0,0.51134331]
[1737155965810,0.047851,104460.0,104450.0,0.51134331]
[1737155966010,0.047851,104460.0,104450.0,0.56904448]
[1737155966318,0.047851,104460.0,104450.0,0.51134331]
[1737155973915,0.05724671,104470.0,104460.0,0.047848]
[1737155973916,0.10509471,104470.0,104460.0,0.047848]
[1737155974226,0.05724671,104470.0,104460.0,0.52405034]
[1737155974522,0.05724671,104470.0,104460.0,0.46634917]
[1737155974728,0.05724671,104470.0,104460.0,0.5113399]
[1737155975116,0.05724671,104470.0,104460.0,0.46634917]
[1737155980518,0.05724671,104470.0,104460.0,0.10554917]
[1737155981127,0.05724671,104470.0,104460.0,0.46634917]
[1737155981425,0.047857,104440.0,104430.0,0.04795673]
[1737155981629,0.52405934,104440.0,104430.0,0.04508551]
[1737155981827,0.263662,104430.0,104420.0,0.00143633]
[1737155982030,0.75086317,104430.0,104420.0,0.04642959]
[1737155982227,0.75086317,104430.0,104420.0,0.00143633]
[1737155982725,0.75086317,104430.0,104420.0,0.0591375]
[1737155982930,0.7509634,104430.0,104420.0,0.1070035]
[1737155983130,0.69326223,104430.0,104420.0,0.1070035]
[1737155983335,0.69326223,104430.0,104420.0,0.04930233]
[1737155983624,0.26376223,104430.0,104420.0,0.13731507]
[1737155983824,0.26376223,104430.0,104420.0,0.54307696]
[1737155987635,0.04796223,104430.0,104420.0,0.54307696]
[1737155993840,0.04796223,104430.0,104420.0,0.45506422]
[1737156007251,0.04796223,104430.0,104420.0,0.09426422]
[1737156007450,0.04796223,104430.0,104420.0,0.45506422]
[1737156010544,0.00010023,104430.0,104420.0,0.54307696]
[1737156021361,0.00010023,104430.0,104420.0,0.57054424]
[1737156025463,0.63490143,104450.0,104440.0,0.047857]
[1737156025663,0.27410143,104450.0,104440.0,0.5113589]
[1737156026262,0.15971785,104450.0,104440.0,0.5113589]
[1737156032668,0.15971785,104450.0,104440.0,0.1505589]
[1737156039174,0.15971785,104450.0,104440.0,0.15995927]
[1737156039775,0.27410143,104450.0,104440.0,0.15995927]
[1737156043476,0.27410143,104450.0,104440.0,0.1505589]
[1737156043978,0.15971785,104450.0,104440.0,0.1505589]
[1737156054401,0.27410143,104450.0,104440.0,0.1505589]
[1737156055294,0.15971785,104450.0,104440.0,0.1505589]
[1737156056190,0.27410143,104450.0,104440.0,0.1505589]
[1737156057898,0.23910143,104450.0,104440.0,0.1505589]
[1737156060699,0.29684144,104450.0,104440.0,0.09281889]
[1737156060995,0.65764144,104450.0,104440.0,0.04496189]
[1737156061200,0.68814144,104450.0,104440.0,0.04496189]
[1737156061794,0.71686888,104450.0,104440.0,0.04496189]
[1737156063904,0.047857,104440.0,104430.0,0.047859]
[1737156064104,0.46639701,104440.0,104430.0,0.09302049]
[1737156067509,0.58084369,104440.0,104430.0,0.09302049]
[1737156068008,0.22004369,104440.0,104430.0,0.09302049]
[1737156068301,0.6385837,104440.0,104430.0,0.09302049]
[1737156068703,0.047862,104430.0,104420.0,0.04930033]
[1737156068899,0.16730201,104430.0,104420.0,0.09443286]
[1737156069502,0.16730201,104430.0,104420.0,0.15217287]
[1737156069702,0.16730201,104430.0,104420.0,0.51297287]
[1737156070506,0.16730201,104430.0,104420.0,0.15217287]
[1737156070809,0.16730201,104430.0,104420.0,0.09443286]
[1737156071410,0.19920201,104430.0,104420.0,0.09443286]
[1737156073108,0.56000201,104430.0,104420.0,0.09443286]
[1737156075403,0.5695333,104430.0,104420.0,0.09443286]
[1737156081114,0.5695333,104430.0,104420.0,0.04930033]
[1737156082919,0.5695333,104430.0,104420.0,0.10704034]
[1737156083413,0.5695333,104430.0,104420.0,0.09437942]
[1737156084219,0.5695333,104430.0,104420.0,0.04930033]
[1737156084420,0.5695333,104430.0,104420.0,0.09438125]
[1737156085217,0.2087333,104430.0,104420.0,0.09438125]
[1737156085417,0.5695333,104430.0,104420.0,0.09438125]
[1737156086618,0.5695333,104430.0,104420.0,0.15212126]
[1737156087020,0.5695333,104430.0,104420.0,0.04930033]
[1737156087414,0.5695333,104430.0,104420.0,0.047864]
[1737156087614,0.5695333,104430.0,104420.0,0.10560401]
[1737156089320,0.5695333,104430.0,104420.0,0.15069909]
[1737156090025,0.5376333,104430.0,104420.0,0.15069909]
[1737156090323,0.47989329,104430.0,104420.0,0.15069909]
[1737156090529,0.5376333,104430.0,104420.0,0.15069909]
[1737156090822,0.47989329,104430.0,104420.0,0.15069909]
[1737156092824,0.5376333,104430.0,104420.0,0.15069909]
[1737156096422,0.65207998,104430.0,104420.0,0.15069909]
[1737156097926,0.17183997,104430.0,104420.0,0.2084391]
[1737156098129,0.17183997,104430.0,104420.0,0.5692391]
[1737156098524,0.11444668,104430.0,104420.0,0.5692391]
[1737156099229,0.11444668,104430.0,104420.0,0.62697911]
[1737156099520,0.11444668,104430.0,104420.0,0.5692391]
[1737156099726,0.20532243,104450.0,104420.0,0.5692391]
[1737156099926,0.20532243,104450.0,104440.0,0.10559701]
[1737156100128,0.20532243,104450.0,104440.0,0.15069209]
[1737156100919,0.09087575,104450.0,104440.0,0.15069209]
[1737156102216,0.45167575,104450.0,104440.0,0.15069209]
[1737156104826,0.45167575,104450.0,104440.0,0.2084321]
[1737156106629,0.45167575,104450.0,104440.0,0.16333702]
[1737156106829,0.09087575,104450.0,104440.0,0.20842926]
[1737156108331,0.09087575,104450.0,104440.0,0.21811416]
[1737156108831,0.09087575,104450.0,104440.0,0.16037415]
[1737156111735,0.09087575,104450.0,104440.0,0.15068925]
[1737156112438,0.09087575,104450.0,104440.0,0.10559701]